[Event "US Masters 2024"]
[Site "Charlotte"]
[Date "2024.11.30"]
[Round "6.18"]
[White "Atanasov, Anthony"]
[Black "Stremavicius, Titas"]
[Result "1-0"]
[ECO "D35"]
[WhiteElo "2415"]
[BlackElo "2545"]
[Annotator "TA"]
[PlyCount "109"]
[EventDate "2024.09.23"]
[EventType "swiss"]
[EventCountry "USA"]
[SourceTitle "playchess.com"]
[Source "ChessBase"]
[SourceQuality "1"]
[TimeControl "5400+30"]

{[%evp 9,109,6,4,0,0,8,5,10,18,17,18,17,4,0,2,5,18,3,4,-8,-2,0,26,22,26,23,29,11,11,0,0,0,0,0,0,-22,-9,-16,-15,-28,-42,-31,-42,-32,-45,-38,-39,-166,-167,-183,-170,-175,-125,-137,-136,-152,-148,-239,-232,-309,-264,-288,-159,-150,0,0,0,0,528,535,535,535,485,310,310,310,307,147,147,147,425,425,425,410,570,395,29945,29958,10469,4943,29973,29974,29974,29976,29976,29975,29975,29976,29976,29977,29980,29981]} 1. d4 {[%emt 0:00:37]} d5 {[%emt 0:04:52]} 2. Nf3 {[%emt 0:00:20]} Nf6 {[%emt 0:00:10]} 3. c4 {[%emt 0:00:12]} e6 {[%emt 0:00:07]} 4. Nc3 {[%emt 0:00:13]} Be7 {[%emt 0:03:54]} 5. cxd5 {[%emt 1:31:38]} exd5 {[%emt 0:00:04]} 6. Bf4 {[%emt 0:00:30]} Nh5 {[%emt 0:01:24]} 7. Be5 {[%emt 0:00:00]} f6 {[%emt 0:14:38]} 8. Bg3 {[%emt 0:00:00] The position is equal.} c6 {[%emt 0:00:09]} 9. e3 {[%emt 0:00:00]} O-O {[%emt 0:01:27]} 10. Bd3 {[%emt 0:00:00]} g6 {[%emt 0:00:09]} 11. Qc2 {[%emt 0:00:00]} Be6 {[%emt 0:03:07]} 12. Ne2 {[%emt 0:00:00]} Na6 {[%emt 0:05:06]} 13. a3 {[%emt 0:00:00] Against Nb4} Qa5+ {[%emt 0:13:26]} 14. Qd2 {[%emt 0:00:00]} Qxd2+ {[%emt 0:00:30]} 15. Kxd2 {[%emt 0:00:00]} Nb8 {[%emt 0:09:50][%cal Ba6b8,Bb8d7,Bd7b6,Bb6c4][%mdl 32]} 16. Nf4 {[%emt 0:00:00]} Nxf4 {[%emt 0:39:37]} 17. exf4 {[%emt 0:00:00]} Bf7 {[%emt 0:00:00]} 18. Rae1 {[%emt 0:00:00]} Re8 {[%emt 0:00:00]} 19. h4 {[%emt 0:00:00]} Nd7 {[%emt 0:00:00]} 20. f5 {[%emt 0:00:00]} Nb6 {[%emt 0:00:00]} 21. fxg6 {[%emt 0:00:00]} Bxg6 {[%emt 0:00:00]} 22. h5 {[%emt 0:00:00]} Bxd3 {[%emt 0:00:00]} 23. Kxd3 {[%emt 0:00:00]} Nc4 {[%emt 0:00:00]} 24. b3 {[%emt 0:00:00]} Nxa3 {[%emt 0:00:00]} 25. Rxe7 $1 {[%emt 0:00:00]} Rxe7 {[%emt 0:00:00]} 26. Bd6 {[%emt 0:00:00][%csl LRa3,LRe7]} Rg7 {[%emt 0:00:00]} 27. Bxa3 {[%emt 0:00:00] Hoping for Nh4.} Rxg2 {[%emt 0:00:00]} 28. Re1 {[%emt 0:00:00]} (28. Rf1 $15) 28... Rxf2 $19 {[%emt 0:00:00]} 29. Nd2 {[%emt 0:00:00]} a5 {[%emt 0:00:00]} (29... Rh2 30. Re7 $11) 30. Re6 {[%emt 0:00:00]} b5 {[%emt 0:00:00]} (30... Rc8 $19 31. Re7 Rh2 32. Rxb7 Rxh5) 31. Rxc6 $17 {[%emt 0:00:00]} a4 {[%emt 0:00:00]} 32. bxa4 {[%emt 0:13:00]} bxa4 {[%emt 0:00:00]} 33. h6 {[%emt 0:00:00]} (33. Rb6 $17) 33... Kf7 $19 {[%emt 0:00:00]} 34. Ke3 {[%emt 0:00:00]} Rh2 {[%emt 0:00:00]} 35. Nf3 {[%emt 0:00:00]} Rh3 {[%emt 0:00:40]} (35... Ra2 $19 36. Rc7+ Kg6) 36. Kf4 $17 {[%emt 0:00:00]} Rb8 {[%emt 0:00:04]} ({Black should try} 36... Rxh6 $17 {Strongly threatening ...Rb8.} 37. Rc7+ Kg8) 37. Rc7+ $11 {[%emt 0:00:00]} Kg6 {[%emt 0:00:05][%cal Ob8b3] White must now prevent ...Rb3!} 38. Kg4 {[%emt 0:00:00]} Rxf3 {[%emt 0:00:13][%mdl 12288] Endgame. [#] KRR-KRB} 39. Bc1 $1 $18 {[%emt 0:00:00][%csl Gh6][%cal Rc7g7]} Rg3+ {[%emt 0:06:54]} 40. Kxg3 {[%emt 0:00:00] KRB-KR} a3 {[%emt 0:00:03]} 41. Ra7 {[%emt 0:00:00]} ({Not} 41. Bxa3 Rb3+ 42. Kg4 Rxa3 $11) 41... Rb4 {[%emt 0:00:39]} 42. Bxa3 {[%emt 0:00:00]} Rxd4 {[%emt 0:00:06]} 43. Bf8 {[%emt 0:01:00]} (43. Bc1 $18) 43... Re4 {[%emt 0:01:58]} 44. Rd7 {[%emt 0:02:38]} d4 $2 {[%emt 0:00:52][%mdl 8192]} (44... f5 $16 45. Rxd5 Kg5) 45. Rg7+ {[%emt 0:00:52]} Kf5 {[%emt 0:00:08]} 46. Rxh7 {[%emt 0:00:12]} Rg4+ {[%emt 0:00:26]} 47. Kf3 {[%emt 0:00:13]} Rg8 $2 {[%emt 0:00:30]} (47... Rf4+ $18 48. Ke2 Re4+ 49. Kd3 Rh4) 48. Rf7 {[%emt 0:00:30]} Ke6 {[%emt 0:02:47]} 49. Re7+ {[%emt 0:00:01]} Kd6 {[%emt 0:00:06]} 50. Re8+ {[%emt 0:00:09] White mates.} Kd7 {[%emt 0:00:57]} 51. Rb8 {[%emt 0:00:11]} d3 {[%emt 0:00:30]} 52. Ke3 {[%emt 0:00:44]} Rg3+ {[%emt 0:00:23]} 53. Kd2 {[%emt 0:00:05]} Rh3 {[%emt 0:00:04] [#]} 54. h7 $1 {[%emt 0:00:44]} Kc6 {[%emt 0:00:23] [#]} (54... Rh2+ 55. Kxd3) 55. Bh6 $1 {[%emt 0:00:06][%mdl 512] Weighted Error Value: White=0.21 (precise) /Black=0.58.  Loses game:     	---       	Black=2      Mistake:       	White=3     	Black=4      Inaccurate:     	White=2     	Black=2      OK:         	White=21    	Black=21     Best:        	White=6     	Black=5      Strong:       	White=2     	---} 1-0

[Event "US Masters 2024"]
[Site "Charlotte"]
[Date "2024.11.30"]
[Round "6.19"]
[White "Brodsky, David"]
[Black "Aarav Dengla"]
[Result "1-0"]
[ECO "D11"]
[WhiteElo "2538"]
[BlackElo "2390"]
[Annotator "TA"]
[PlyCount "57"]
[EventDate "2024.09.23"]
[EventType "swiss"]
[EventCountry "USA"]
[SourceTitle "playchess.com"]
[Source "ChessBase"]
[SourceQuality "1"]
[TimeControl "5400+30"]

{[%evp 9,57,17,21,1,25,31,59,36,111,111,225,218,218,223,256,260,260,264,256,249,262,272,267,258,260,259,316,308,338,352,347,346,417,381,449,460,456,466,492,508,500,411,412,412,414,406,403,399,429,429]} 1. d4 {[%emt 0:06:40]} d5 {[%emt 0:00:20]} 2. c4 {[%emt 0:00:03]} c6 {[%emt 0:00:20]} 3. Nf3 {[%emt 0:00:03]} Nf6 {[%emt 0:00:09]} 4. g3 {[%emt 0:00:03]} Bg4 {[%emt 0:02:53]} 5. Ne5 {[%emt 0:00:10]} Bf5 {[%emt 0:00:34]} 6. cxd5 {[%emt 0:00:06]} cxd5 {[%emt 0:03:50]} 7. Nc3 {[%emt 0:00:07][%cal Oe2e4]} Qb6 {[%emt 0:19:48]} 8. f3 {[%emt 0:12:31][%cal Oe2e4] White is slightly better.} h6 {[%emt 0:22:43]} (8... Nc6 $14) 9. e4 $16 {[%emt 0:11:40]} Be6 {[%emt 0:12:43]} (9... dxe4 $16 {was worth a try.} 10. fxe4 Bxe4 11. Nxe4 Nxe4) 10. Bb5+ $18 {[%emt 0:02:00]} Nc6 {[%emt 0:00:37] [#]} 11. Qb3 $1 {[%emt 0:04:12]} Rd8 {[%emt 0:04:16] [#]} 12. Na4 $1 {[%emt 0:02:24]} (12. Bxc6+ bxc6 13. Qxb6 axb6 $16) 12... Qxd4 {[%emt 0:10:51]} 13. Bxc6+ {[%emt 0:01:34]} bxc6 {[%emt 0:00:03]} 14. Nxc6 {[%emt 0:00:08]} dxe4 {[%emt 0:00:12]} 15. Nxd4 {[%emt 0:00:18] A dynamic duo of knights.} Bxb3 {[%emt 0:00:02]} 16. Nxb3 {[%emt 0:00:06]} exf3 {[%emt 0:00:03]} 17. O-O {[%emt 0:01:16]} e5 {[%emt 0:04:56][%cal Be7e5,Be5e4,Be4e3][%mdl 32]} 18. Rxf3 {[%emt 0:00:39]} e4 {[%emt 0:00:19]} 19. Rf1 {[%emt 0:00:38]} Bb4 {[%emt 0:00:56]} 20. Be3 {[%emt 0:00:50]} Nd5 {[%emt 0:01:45]} 21. Bc5 {[%emt 0:01:05]} e3 {[%emt 0:00:51]} 22. Bxb4 {[%emt 0:00:33]} ({Less strong is} 22. Bxa7 O-O 23. Rfc1 h5 $18) 22... Nxb4 {[%emt 0:00:02]} 23. Rf4 {[%emt 0:00:26]} Nd5 {[%emt 0:01:54]} 24. Re4+ {[%emt 0:00:12]} Kd7 {[%emt 0:00:10]} 25. Nc3 {[%emt 0:01:24]} Nxc3 {[%emt 0:00:30]} 26. bxc3 {[%emt 0:00:04]} Rhe8 {[%emt 0:00:04]} 27. Rxe8 {[%emt 0:00:36]} Rxe8 {[%emt 0:00:03]} 28. Kf1 {[%emt 0:00:12]} Rc8 {[%emt 0:00:46]} 29. Rc1 {[%emt 0:00:11] Black did not feel at home in the position after the opening.   Weighted Error Value: White=0.10 (very precise) /Black=0.31.  Mistake:       	---       	Black=2      Inaccurate:     	---       	Black=1      OK:         	White=13    	Black=7      Best:        	---       	Black=1      Strong:       	White=2     	---} ({Much less strong is} 29. Rd1+ Ke6 30. Nd4+ (30. Rd3 Kf5 $18) 30... Kf6) 1-0

[Event "US Masters 2024"]
[Site "Charlotte"]
[Date "2024.11.30"]
[Round "6.20"]
[White "Prithu Gupta"]
[Black "Harsha Bharathakoti"]
[Result "1/2-1/2"]
[ECO "B33"]
[WhiteElo "2412"]
[BlackElo "2531"]
[Annotator "TA"]
[PlyCount "110"]
[EventDate "2024.09.23"]
[EventType "swiss"]
[EventCountry "USA"]
[SourceTitle "playchess.com"]
[Source "ChessBase"]
[SourceQuality "1"]
[TimeControl "5400+30"]

{[%evp 30,110,61,20,29,33,109,76,113,112,110,116,99,33,48,58,75,38,45,38,49,41,48,32,42,40,83,74,133,133,104,118,380,324,393,401,418,443,459,362,459,458,484,426,511,477,465,489,510,512,512,429,1164,1118,1130,1042,775,725,1629,1495,1174,595,977,492,580,896,619,492,595,492,492,492,3829,0,0,0,0,0,0,0,0,0,0]} 1. e4 {[%emt 0:01:45]} c5 {[%emt 0:09:32]} 2. Nf3 {[%emt 0:00:02]} Nc6 {[%emt 0:01:18]} 3. d4 {[%emt 0:01:15]} cxd4 {[%emt 0:00:05]} 4. Nxd4 {[%emt 0:00:02]} Nf6 {[%emt 0:00:10]} 5. Nc3 {[%emt 0:00:03]} e6 {[%emt 0:01:47]} 6. Ndb5 {[%emt 0:00:35]} d6 {[%emt 0:01:15]} 7. Bf4 {[%emt 0:00:08]} e5 {[%emt 0:00:04]} 8. Bg5 {[%emt 0:00:03]} a6 {[%emt 0:00:12]} 9. Na3 {[%emt 0:00:42]} b5 {[%emt 0:00:43]} 10. Bxf6 {[%emt 0:00:07]} gxf6 {[%emt 0:00:05]} 11. Nd5 {[%emt 0:00:04]} Bg7 {[%emt 0:02:45]} 12. Bd3 {[%emt 0:00:29]} Ne7 {[%emt 0:04:22]} 13. Nxe7 {[%emt 0:00:50]} Qxe7 {[%emt 0:00:04]} 14. c4 {[%emt 0:01:14]} f5 {[%emt 0:05:45]} 15. O-O {[%emt 0:00:31]} O-O {[%emt 0:01:24]} 16. Qf3 {[%emt 0:35:57]} (16. exf5 e4 17. Re1 Bxf5 $17 (17... Bxb2 18. Bxe4 Ra7 19. Rb1 $16)) (16. cxb5 d5 $11) 16... d5 {[%emt 0:16:38]} 17. cxd5 {[%emt 0:02:05]} f4 {[%emt 0:06:35]} (17... fxe4 $14 18. Bxe4 Rb8) 18. Rfd1 {[%emt 0:01:45]} Rb8 {[%emt 0:05:28][%cal Ba8b8,Bb8b6,Bb6g6][%mdl 32] White is better.} 19. Rac1 {[%emt 0:05:38]} Rb6 {[%emt 0:03:50]} 20. Be2 {[%emt 0:01:57]} Rg6 {[%emt 0:08:37]} 21. Rc6 {[%emt 0:00:32]} (21. Nc2 $16) 21... Rxc6 {[%emt 0:00:30]} 22. dxc6 {[%emt 0:00:30]} Be6 {[%emt 0:04:15][%cal Of8c8]} 23. Nc2 {[%emt 0:00:28] Threatens to win with Qc3.} Qc5 {[%emt 0:14:37]} 24. Qc3 {[%emt 0:02:13]} Qxc3 {[%emt 0:00:04]} 25. bxc3 {[%emt 0:00:02]} Rc8 {[%emt 0:00:04]} 26. Nb4 $36 {[%emt 0:00:06][%mdl 2048] And now a4 would win. White fights for an advantage.} Bf8 $1 {[%emt 0:00:03]} (26... a5 $2 27. Nd5 Bf8 28. Bxb5 $18) 27. Rc1 {[%emt 0:06:55]} Bxb4 {[%emt 0:07:55]} 28. cxb4 {[%emt 0:00:02][%cal Oa2a4]} Bxa2 $14 {[%emt 0:00:04][%mdl 4096] Endgame. [#] KRB-KRB} (28... Kf8 $142) 29. Bg4 $1 $16 {[%emt 0:09:30]} Rc7 {[%emt 0:02:17]} 30. Bd7 {[%emt 0:05:22]} Be6 $2 {[%emt 0:00:41][%mdl 8192]} (30... Bc4 $16) 31. Bxe6 $18 {[%emt 0:01:47]} fxe6 {[%emt 0:00:03] KR-KR} 32. g4 {[%emt 0:00:14]} fxg3 {[%emt 0:00:52]} 33. fxg3 {[%emt 0:02:09]} (33. hxg3 Kf8 $16) 33... Kf7 {[%emt 0:00:40]} 34. g4 {[%emt 0:02:45]} Ke7 {[%emt 0:00:16]} 35. h4 {[%emt 0:02:24]} Kd8 {[%emt 0:00:03]} (35... Kd6 36. g5 a5 (36... Rxc6 $2 37. Rxc6+ Kxc6 38. h5 $18) 37. bxa5 $18) 36. Kg2 {[%emt 0:00:54]} Rf7 {[%emt 0:01:03]} 37. Rf1 {[%emt 0:04:07]} Rg7 {[%emt 0:00:04]} 38. Kg3 {[%emt 0:02:04]} Kc7 {[%emt 0:00:03][%cal Oh7h5]} 39. Ra1 {[%emt 0:05:01]} h5 {[%emt 0:02:47]} 40. g5 {[%emt 0:01:09]} (40. Rxa6 Rxg4+ 41. Kf3 Rxh4 42. Ra7+ Kxc6 43. Ra6+ Kd7 $15) 40... Rf7 {[%emt 0:02:56]} (40... Rh7 $142 41. Rxa6 Rh8) 41. Rxa6 {[%emt 0:00:37] Ra7+ would kill now.} Rf4 {[%emt 0:00:03]} 42. Ra7+ {[%emt 0:00:11]} Kxc6 {[%emt 0:00:03]} 43. Rh7 {[%emt 0:00:14]} Kd6 {[%emt 0:00:44]} 44. Rxh5 {[%emt 0:00:06] Strongly threatening g6.} Rxe4 {[%emt 0:01:44]} 45. Rh7 {[%emt 0:01:28]} Rxb4 {[%emt 0:00:00]} 46. g6 {[%emt 0:01:47]} Rb3+ {[%emt 0:00:00]} 47. Kg4 {[%emt 0:00:49]} Rb1 {[%emt 0:00:00]} 48. h5 {[%emt 0:01:07] Black must now prevent g7.} Rg1+ {[%emt 0:00:00] [#]} 49. Kf3 $1 {[%emt 0:00:05]} b4 {[%emt 0:00:49]} 50. Rb7 {[%emt 0:00:41]} b3 {[%emt 0:01:01]} (50... Kc5 $142 51. g7 Kc6) 51. g7 $2 {[%emt 0:00:06]} (51. Kf2 $18 Rg4 52. Rxb3) 51... Kc6 $1 $11 {[%emt 0:00:11] The position is equal.} 52. Rxb3 {[%emt 0:03:07] h6 would now be deadly.} Rxg7 {[%emt 0:00:03]} 53. Rb1 {[%emt 0:00:54]} Kd6 {[%emt 0:01:50]} 54. h6 {[%emt 0:00:48]} Rh7 {[%emt 0:00:11]} 55. Rh1 {[%emt 0:00:06]} Kd5 {[%emt 0:00:28] Weighted Error Value: White=0.37/Black=0.26 (precise) .  Loses game:     	---       	Black=1      Missed win:     	White=1     	---        Mistake:       	White=1     	Black=4      Inaccurate:     	White=2     	Black=2      OK:         	White=13    	Black=9      Best:        	White=4     	Black=3      Strong:       	White=1     	Black=2} 1/2-1/2

[Event "US Masters 2024"]
[Site "Charlotte"]
[Date "2024.11.30"]
[Round "6.21"]
[White "Lee, Alice"]
[Black "Cordova, Emilio"]
[Result "0-1"]
[ECO "A58"]
[WhiteElo "2398"]
[BlackElo "2525"]
[Annotator "TA"]
[PlyCount "106"]
[EventDate "2024.09.23"]
[EventType "swiss"]
[EventCountry "USA"]
[SourceTitle "playchess.com"]
[Source "ChessBase"]
[SourceQuality "1"]
[TimeControl "5400+30"]

{[%evp 23,106,42,37,18,51,40,39,0,55,20,24,19,14,-104,-110,-95,-100,-154,-160,-165,-146,-143,-116,-189,-172,-547,-74,-84,-90,-86,-34,-91,-115,-94,-85,-208,-202,-216,-211,-211,-211,-198,-198,-203,-206,-206,-147,-121,-136,-230,-230,-229,-229,-234,-234,-219,-212,-211,-171,-192,-193,-835,-684,-1262,-1255,-1579,-1215,-1213,-1163,-1204,-1129,-1688,-1651,-1480,-1392,-1339,-1292,-4132,-1451,-4132,-1442,-4132,-4033,-2193,-1956]} 1. d4 {[%emt 0:05:14]} Nf6 {[%emt 0:01:35]} 2. c4 {[%emt 0:00:10]} c5 {[%emt 0:00:04]} 3. d5 {[%emt 0:00:08]} b5 {[%emt 0:00:05]} 4. cxb5 {[%emt 0:00:08]} a6 {[%emt 0:00:06]} 5. bxa6 {[%emt 0:00:06]} e6 {[%emt 0:00:23]} 6. Nc3 {[%emt 0:01:23] A58: Benko/Volga Gambit: Lines with 5 bxa6.} exd5 {[%emt 0:00:05]} 7. Nxd5 {[%emt 0:00:16]} Nc6 {[%emt 0:00:12]} 8. Bg5 $146 {[%emt 0:06:33]} ({Predecessor:} 8. g3 Be7 9. Bg2 O-O 10. Nf3 Nxd5 11. Qxd5 Bxa6 12. Be3 Nb4 13. Qd1 d5 14. a3 {½-½ Kolmagorov,A (2124)-Asylov,M (2268) Titled Tuesday intern op 26th Dec Early blitz 2023 (6)}) 8... Be7 {[%emt 0:00:13]} 9. Nxe7 {[%emt 0:00:31]} Qxe7 {[%emt 0:00:05]} 10. e3 {[%emt 0:01:06]} Qe5 {[%emt 0:02:36]} 11. Bxf6 {[%emt 0:00:28]} Qxf6 {[%emt 0:02:08]} 12. Qd2 {[%emt 0:01:44]} Rb8 {[%emt 0:14:59]} 13. Rb1 {[%emt 0:08:42]} O-O {[%emt 0:05:00]} 14. a7 {[%emt 0:12:09]} Nxa7 {[%emt 0:00:31]} 15. Ne2 {[%emt 0:00:56]} Bb7 {[%emt 0:29:57]} (15... d5 $11) 16. Nf4 {[%emt 0:05:14]} (16. Qxd7 $2 Rfd8 17. Qa4 Nc6 $19) 16... Rfe8 {[%emt 0:06:10]} 17. Be2 {[%emt 0:04:31]} Be4 {[%emt 0:00:23]} 18. Rd1 {[%emt 0:02:11]} (18. Rc1 $11 {remains equal.}) 18... Rxb2 $17 {[%emt 0:07:36]} 19. Qxd7 {[%emt 0:01:37]} Bc6 $1 {[%emt 0:00:06]} (19... Qc3+ 20. Kf1 Bc6 (20... Ra8 21. Qd8+ Rxd8 22. Rxd8#) 21. Qxa7 $18) 20. Qd6 {[%emt 0:15:05]} (20. Qxa7 $2 Qxf4 (20... Qc3+ $2 21. Kf1 $18) 21. Qa3 (21. exf4 Rexe2+ 22. Kf1 Rxf2+ 23. Kg1 Rxg2+ 24. Kf1 Bb5+ 25. Ke1 Rge2+ 26. Kf1 Rxh2+ 27. Kg1 Rhg2#) 21... Rxe2+ 22. Kxe2 Bxg2 23. Qxc5 Qg4+ (23... Qf3+ $2 24. Ke1 $19) 24. Ke1 Bxh1 $19) (20. Qg4 $142) 20... Qc3+ $17 {[%emt 0:03:41]} ({Worse is} 20... Rxa2 21. Qxf6 (21. Qxc5 $2 Qxf4 22. O-O Qf6 $19) 21... gxf6 22. O-O $16) 21. Kf1 {[%emt 0:00:03]} Ba4 {[%emt 0:01:31]} ({But not} 21... Rxa2 22. Kg1 $15) 22. Re1 {[%emt 0:05:55]} Rxa2 {[%emt 0:08:11]} 23. g4 {[%emt 0:01:19]} (23. Qd3 $17 {might work better.} Nb5 24. Qxc3 Nxc3 25. Bc4) 23... Bc6 $19 {[%emt 0:03:50]} 24. Rg1 $2 {[%emt 0:01:15]} (24. Nd5 {nothing else works.} Qa5 (24... Qd2 $2 25. Ne7+ Rxe7 26. Qxe7 $19) 25. Rd1) 24... Ra1 $2 {[%emt 0:05:25]} (24... Rd2 $1 $19 {[%cal Rd2d6]} 25. Qc7 g5) 25. Rxa1 $17 {[%emt 0:00:08]} Qxa1+ {[%emt 0:00:04]} 26. Qd1 {[%emt 0:00:02]} Qa5 {[%emt 0:00:26]} (26... Qxd1+ $17 27. Bxd1 Nb5) 27. Bf3 {[%emt 0:07:03] [#]} ({White should play} 27. Qc1 $1 $15) 27... Rd8 $1 $17 {[%emt 0:00:45]} 28. Nd5 {[%emt 0:00:01]} Nb5 {[%emt 0:01:15]} 29. Ne7+ {[%emt 0:00:14]} (29. Qb3 $17 Kh8 30. Kg2) 29... Kf8 $19 {[%emt 0:00:05]} 30. Qxd8+ {[%emt 0:00:13]} Qxd8 {[%emt 0:00:04]} 31. Nxc6 {[%emt 0:00:05]} Qd2 {[%emt 0:02:18]} 32. Kg2 {[%emt 0:00:16] [#]} Nc3 $1 {[%emt 0:01:12]} 33. Ra1 {[%emt 0:00:09]} g6 {[%emt 0:01:26]} 34. Ne5 {[%emt 0:02:45]} Nd5 {[%emt 0:02:12]} 35. Ra3 {[%emt 0:01:01]} Ne7 {[%emt 0:01:44]} 36. Ra8+ {[%emt 0:14:18]} (36. Rd3 $17 {was forced.} Qa2 37. h3) 36... Kg7 $19 {[%emt 0:00:11]} 37. Ra7 {[%emt 0:00:24]} Qd6 {[%emt 0:00:18]} 38. Nc4 {[%emt 0:00:01]} Qe6 {[%emt 0:00:10]} 39. Nd2 {[%emt 0:00:06]} h6 {[%emt 0:00:56]} 40. h3 {[%emt 0:01:00]} g5 {[%emt 0:00:23]} 41. Ne4 {[%emt 0:01:11]} Ng6 {[%emt 0:00:06]} 42. Nd2 $2 {[%emt 0:00:55]} (42. Kh2) 42... Nh4+ {[%emt 0:00:10]} 43. Kf1 {[%emt 0:00:03]} Qb6 {[%emt 0:01:27]} 44. Ra3 {[%emt 0:01:56]} Qb2 {[%emt 0:00:28]} 45. Rd3 {[%emt 0:00:17]} c4 {[%emt 0:00:19]} 46. Nxc4 {[%emt 0:00:55]} Qc1+ {[%emt 0:00:04]} 47. Rd1 {[%emt 0:00:02]} Qxc4+ {[%emt 0:00:05]} 48. Be2 {[%emt 0:00:02]} Qe4 {[%emt 0:00:06]} 49. Ke1 {[%emt 0:00:10]} Qh1+ {[%emt 0:00:28]} 50. Bf1 {[%emt 0:00:14]} Nf3+ {[%emt 0:00:26]} 51. Ke2 {[%emt 0:00:05]} Ng1+ {[%emt 0:00:21]} 52. Ke1 {[%emt 0:00:06]} Nxh3 {[%emt 0:00:21]} 53. Rd2 {[%emt 0:00:04]} Ng1 {[%emt 0:00:10]} 0-1